[Event "Titled Tuesday Blitz November 30 2021"]
[White "Babazada, Khazar"]
[Black "Golubka, Petro"]
[WhiteFideId "13413554"]
[BlackFideId "14114224"]
[WhiteElo "2302"]
[BlackElo "2392"]
[Result "0-1"]
[Round "05"]
[TimeControl "180+1"]
[Date "2021.11.30"]
[WhiteClock "0:00:18"]
[BlackClock "0:00:27"]

1. e4 {[%clk 0:02:50]}  c5 {[%clk 0:02:58]} 2. Nf3 {[%clk 0:02:41]}  d6 {[%clk 0:02:57]} 3. d4 {[%clk 0:02:41]}  cxd4 {[%clk 0:02:58]} 4. Nxd4 {[%clk 0:02:42]}  Nf6 {[%clk 0:02:57]} 5. Nc3 {[%clk 0:02:42]}  a6 {[%clk 0:02:58]} 6. h3 {[%clk 0:02:40]}  h5 {[%clk 0:02:57]} 7. Be3 {[%clk 0:02:37]}  e6 {[%clk 0:02:54]} 8. Qd2 {[%clk 0:02:32]}  b5 {[%clk 0:02:54]} 9. a3 {[%clk 0:02:27]}  Bb7 {[%clk 0:02:54]} 10. f3 {[%clk 0:02:17]}  Nbd7 {[%clk 0:02:55]} 11. O-O-O {[%clk 0:02:16]}  h4 {[%clk 0:02:55]} 12. Kb1 {[%clk 0:02:14]}  Rc8 {[%clk 0:02:51]} 13. Nb3 {[%clk 0:02:09]}  Be7 {[%clk 0:02:49]} 14. Be2 {[%clk 0:02:06]}  Nh5 {[%clk 0:02:42]} 15. Rhe1 {[%clk 0:01:54]}  g5 {[%clk 0:02:39]} 16. Na2 {[%clk 0:01:51]}  Ne5 {[%clk 0:02:38]} 17. Na5 {[%clk 0:01:45]}  Ba8 {[%clk 0:02:37]} 18. a4 {[%clk 0:01:38]}  bxa4 {[%clk 0:02:34]} 19. Bxa6 {[%clk 0:01:38]}  Rb8 {[%clk 0:02:34]} 20. Ka1 {[%clk 0:01:36]}  a3 {[%clk 0:02:30]} 21. b4 {[%clk 0:01:24]}  O-O {[%clk 0:02:27]} 22. c3 {[%clk 0:01:22]}  Qc7 {[%clk 0:02:15]} 23. Rc1 {[%clk 0:01:19]}  f6 {[%clk 0:02:11]} 24. Nb3 {[%clk 0:01:15]}  d5 {[%clk 0:02:10]} 25. Nd4 {[%clk 0:01:09]}  Ng7 {[%clk 0:02:01]} 26. exd5 {[%clk 0:01:07]}  Bxd5 {[%clk 0:01:59]} 27. c4 {[%clk 0:01:03]}  Bxc4 {[%clk 0:01:50]} 28. Qc2 {[%clk 0:01:02]}  Rfc8 {[%clk 0:01:44]} 29. Bxc8 {[%clk 0:00:59]}  Rxc8 {[%clk 0:01:42]} 30. Red1 {[%clk 0:00:52]}  Qb7 {[%clk 0:01:41]} 31. f4 {[%clk 0:00:47]}  gxf4 {[%clk 0:01:34]} 32. Bxf4 {[%clk 0:00:48]}  Bxb4 {[%clk 0:01:21]} 33. g3 {[%clk 0:00:35]}  Bc5 {[%clk 0:01:00]} 34. Rb1 {[%clk 0:00:30]}  Qa7 {[%clk 0:00:49]} 35. Be3 {[%clk 0:00:28]}  Ba6 {[%clk 0:00:37]} 36. gxh4 {[%clk 0:00:24]}  Bxd4+ {[%clk 0:00:35]} 37. Bxd4 {[%clk 0:00:23]}  Qxd4+ {[%clk 0:00:35]} 38. Rxd4 {[%clk 0:00:24]}  Rxc2 {[%clk 0:00:35]} 39. Nb4 {[%clk 0:00:23]}  a2 {[%clk 0:00:28]} 40. Rg1 {[%clk 0:00:21]}  Nf3 {[%clk 0:00:27]} 41. Rxg7+ {[%clk 0:00:18]}  Kxg7 {[%clk 0:00:28]} 42. Nxc2 {[%clk 0:00:19]}  Nxd4 {[%clk 0:00:27]} 43. Nxd4 {[%clk 0:00:18]}  Bc4 {[%clk 0:00:27]} 0-1


[Site "https://www.chess.com"]

[Event "Titled Tuesday Blitz November 30 2021"]
[White "Bologan, Victor"]
[Black "Deac, Bogdan-Daniel"]
[WhiteFideId "13900048"]
[BlackFideId "1226380"]
[WhiteElo "2472"]
[BlackElo "2605"]
[Result "1-0"]
[Round "05"]
[TimeControl "180+1"]
[Date "2021.11.30"]
[WhiteClock "0:00:10"]
[BlackClock "0:00:01"]

1. e4 {[%clk 0:03:00]}  c5 {[%clk 0:02:59]} 2. Nf3 {[%clk 0:03:00]}  d6 {[%clk 0:02:59]} 3. Bb5+ {[%clk 0:02:57]}  Nd7 {[%clk 0:02:59]} 4. c3 {[%clk 0:02:57]}  Nf6 {[%clk 0:02:59]} 5. Bd3 {[%clk 0:02:54]}  g6 {[%clk 0:02:58]} 6. O-O {[%clk 0:02:54]}  Bg7 {[%clk 0:02:58]} 7. Bc2 {[%clk 0:02:54]}  b5 {[%clk 0:02:58]} 8. d4 {[%clk 0:02:53]}  Bb7 {[%clk 0:02:45]} 9. Qe2 {[%clk 0:02:50]}  cxd4 {[%clk 0:02:35]} 10. cxd4 {[%clk 0:02:49]}  O-O {[%clk 0:02:30]} 11. Re1 {[%clk 0:02:40]}  Rc8 {[%clk 0:02:27]} 12. Bd3 {[%clk 0:02:34]}  Qb6 {[%clk 0:02:08]} 13. Nbd2 {[%clk 0:02:31]}  a6 {[%clk 0:01:53]} 14. a4 {[%clk 0:02:29]}  Nh5 {[%clk 0:01:52]} 15. Qe3 {[%clk 0:02:13]}  e5 {[%clk 0:01:04]} 16. dxe5 {[%clk 0:01:56]}  Qxe3 {[%clk 0:01:03]} 17. Rxe3 {[%clk 0:01:42]}  Nxe5 {[%clk 0:00:53]} 18. Nxe5 {[%clk 0:01:25]}  dxe5 {[%clk 0:00:46]} 19. axb5 {[%clk 0:01:19]}  axb5 {[%clk 0:00:41]} 20. Bxb5 {[%clk 0:01:05]}  Bh6 {[%clk 0:00:35]} 21. Rc3 {[%clk 0:00:56]}  Rxc3 {[%clk 0:00:30]} 22. bxc3 {[%clk 0:00:56]}  Rd8 {[%clk 0:00:31]} 23. Nf1 {[%clk 0:00:35]}  Bxc1 {[%clk 0:00:17]} 24. Rxc1 {[%clk 0:00:35]}  Bxe4 {[%clk 0:00:18]} 25. Re1 {[%clk 0:00:35]}  Bd3 {[%clk 0:00:17]} 26. Rxe5 {[%clk 0:00:29]}  Nf4 {[%clk 0:00:13]} 27. g3 {[%clk 0:00:24]}  Bxb5 {[%clk 0:00:07]} 28. gxf4 {[%clk 0:00:21]}  Bc6 {[%clk 0:00:07]} 29. Ne3 {[%clk 0:00:20]}  Ra8 {[%clk 0:00:06]} 30. h4 {[%clk 0:00:18]}  f5 {[%clk 0:00:06]} 31. Kh2 {[%clk 0:00:14]}  Kf7 {[%clk 0:00:04]} 32. Rc5 {[%clk 0:00:13]}  Ra6 {[%clk 0:00:04]} 33. Nc4 {[%clk 0:00:13]}  Ke6 {[%clk 0:00:05]} 34. Ne5 {[%clk 0:00:12]}  Bd5 {[%clk 0:00:04]} 35. c4 {[%clk 0:00:12]}  Be4 {[%clk 0:00:04]} 36. f3 {[%clk 0:00:12]}  Bc2 {[%clk 0:00:02]} 37. Rc7 {[%clk 0:00:11]}  Ra3 {[%clk 0:00:01]} 38. Kg3 {[%clk 0:00:11]}  Bd1 {[%clk 0:00:01]} 39. Rxh7 {[%clk 0:00:10]} 1-0


[Site "https://www.chess.com"]

[Event "Titled Tuesday Blitz November 30 2021"]
[White "Donchenko, Alexander"]
[Black "Abdrlauf, Elham"]
[WhiteFideId "24603295"]
[BlackFideId "1533533"]
[WhiteElo "2490"]
[BlackElo "2362"]
[Result "1/2-1/2"]
[Round "05"]
[TimeControl "180+1"]
[Date "2021.11.30"]
[WhiteClock "0:00:04"]
[BlackClock "0:00:03"]

1. Nf3 {[%clk 0:01:04]}  Nf6 {[%clk 0:02:59]} 2. g3 {[%clk 0:01:05]}  g6 {[%clk 0:02:59]} 3. Bg2 {[%clk 0:01:05]}  Bg7 {[%clk 0:03:00]} 4. O-O {[%clk 0:01:06]}  O-O {[%clk 0:03:01]} 5. d4 {[%clk 0:01:07]}  d5 {[%clk 0:03:01]} 6. c4 {[%clk 0:01:06]}  c6 {[%clk 0:03:02]} 7. cxd5 {[%clk 0:01:07]}  cxd5 {[%clk 0:03:03]} 8. Nc3 {[%clk 0:01:07]}  Nc6 {[%clk 0:03:03]} 9. Ne5 {[%clk 0:01:07]}  e6 {[%clk 0:02:30]} 10. Nxc6 {[%clk 0:01:05]}  bxc6 {[%clk 0:02:31]} 11. b3 {[%clk 0:01:05]}  Nd7 {[%clk 0:02:27]} 12. Ba3 {[%clk 0:01:05]}  Re8 {[%clk 0:02:23]} 13. Na4 {[%clk 0:01:04]}  Ba6 {[%clk 0:02:17]} 14. Rc1 {[%clk 0:01:02]}  Bb5 {[%clk 0:02:16]} 15. Nc3 {[%clk 0:01:02]}  Qa5 {[%clk 0:02:09]} 16. Bb2 {[%clk 0:01:01]}  Ba6 {[%clk 0:01:59]} 17. a3 {[%clk 0:00:57]}  Qb6 {[%clk 0:01:51]} 18. e3 {[%clk 0:00:54]}  Bxf1 {[%clk 0:01:47]} 19. Bxf1 {[%clk 0:00:54]}  e5 {[%clk 0:01:19]} 20. Na4 {[%clk 0:00:50]}  Qc7 {[%clk 0:01:20]} 21. dxe5 {[%clk 0:00:47]}  Bxe5 {[%clk 0:01:14]} 22. Bxe5 {[%clk 0:00:44]}  Rxe5 {[%clk 0:01:05]} 23. b4 {[%clk 0:00:42]}  Qd6 {[%clk 0:01:01]} 24. Qd4 {[%clk 0:00:38]}  Re4 {[%clk 0:00:57]} 25. Qd2 {[%clk 0:00:33]}  Ne5 {[%clk 0:00:48]} 26. Bg2 {[%clk 0:00:32]}  Rc4 {[%clk 0:00:48]} 27. Rd1 {[%clk 0:00:31]}  Rb8 {[%clk 0:00:38]} 28. Nb2 {[%clk 0:00:21]}  Rg4 {[%clk 0:00:36]} 29. Qc3 {[%clk 0:00:21]}  Qf6 {[%clk 0:00:25]} 30. Rc1 {[%clk 0:00:19]}  a5 {[%clk 0:00:22]} 31. f4 {[%clk 0:00:17]}  axb4 {[%clk 0:00:15]} 32. axb4 {[%clk 0:00:17]}  Nd7 {[%clk 0:00:14]} 33. Qxf6 {[%clk 0:00:16]}  Nxf6 {[%clk 0:00:15]} 34. Rxc6 {[%clk 0:00:15]}  Rxb4 {[%clk 0:00:05]} 35. Nd3 {[%clk 0:00:13]}  Rb1+ {[%clk 0:00:04]} 36. Kf2 {[%clk 0:00:10]}  Ne4+ {[%clk 0:00:04]} 37. Bxe4 {[%clk 0:00:10]}  dxe4 {[%clk 0:00:05]} 38. Ne5 {[%clk 0:00:11]}  Rb2+ {[%clk 0:00:04]} 39. Kg1 {[%clk 0:00:11]}  h5 {[%clk 0:00:04]} 40. Rc4 {[%clk 0:00:09]}  f5 {[%clk 0:00:03]} 41. Rc7 {[%clk 0:00:08]}  Rb1+ {[%clk 0:00:02]} 42. Kg2 {[%clk 0:00:08]}  Rb2+ {[%clk 0:00:03]} 43. Kg1 {[%clk 0:00:08]}  Rb1+ {[%clk 0:00:03]} 44. Kg2 {[%clk 0:00:07]}  Rb2+ {[%clk 0:00:04]} 45. Kh3 {[%clk 0:00:07]}  Rb3 {[%clk 0:00:04]} 46. Nxg4 {[%clk 0:00:05]}  hxg4+ {[%clk 0:00:05]} 47. Kh4 {[%clk 0:00:06]}  Rxe3 {[%clk 0:00:05]} 48. Kg5 {[%clk 0:00:06]}  Re2 {[%clk 0:00:02]} 49. Kxg6 {[%clk 0:00:07]}  Kf8 {[%clk 0:00:03]} 50. Rh7 {[%clk 0:00:05]}  e3 {[%clk 0:00:02]} 51. Kxf5 {[%clk 0:00:05]}  Ra2 {[%clk 0:00:03]} 52. Rh6 {[%clk 0:00:04]}  Ra5+ {[%clk 0:00:03]} 53. Kxg4 {[%clk 0:00:04]}  Kf7 {[%clk 0:00:03]} 54. Rh7+ {[%clk 0:00:04]}  Kf6 {[%clk 0:00:03]} 55. Rh6+ {[%clk 0:00:04]}  Kf7 {[%clk 0:00:03]} 56. Rh7+ {[%clk 0:00:04]}  Kf6 {[%clk 0:00:03]} 57. Rh6+ {[%clk 0:00:04]}  Kf7 {[%clk 0:00:03]} 1/2-1/2


[Site "https://www.chess.com"]

[Event "Titled Tuesday Blitz November 30 2021"]
[White "Druska, Juraj"]
[Black "Svane, Frederik"]
[WhiteFideId "14915650"]
[BlackFideId "12923044"]
[WhiteElo "2369"]
[BlackElo "2459"]
[Result "0-1"]
[Round "05"]
[TimeControl "180+1"]
[Date "2021.11.30"]
[WhiteClock "0:00:44"]
[BlackClock "0:01:42"]

1. d4 {[%clk 0:03:00]}  Nf6 {[%clk 0:02:59]} 2. Bf4 {[%clk 0:03:00]}  b6 {[%clk 0:02:55]} 3. e3 {[%clk 0:02:52]}  Bb7 {[%clk 0:02:55]} 4. Nf3 {[%clk 0:02:47]}  Nh5 {[%clk 0:02:55]} 5. Bg3 {[%clk 0:02:47]}  d6 {[%clk 0:02:53]} 6. Nbd2 {[%clk 0:02:44]}  g6 {[%clk 0:02:50]} 7. a4 {[%clk 0:02:39]}  Nxg3 {[%clk 0:02:37]} 8. hxg3 {[%clk 0:02:39]}  a6 {[%clk 0:02:38]} 9. c3 {[%clk 0:02:31]}  Bg7 {[%clk 0:02:38]} 10. Bd3 {[%clk 0:02:29]}  Nd7 {[%clk 0:02:38]} 11. Be4 {[%clk 0:02:16]}  d5 {[%clk 0:02:37]} 12. Bd3 {[%clk 0:02:13]}  c5 {[%clk 0:02:37]} 13. Qe2 {[%clk 0:02:03]}  e6 {[%clk 0:02:26]} 14. b4 {[%clk 0:01:20]}  O-O {[%clk 0:02:17]} 15. O-O {[%clk 0:01:16]}  Qc7 {[%clk 0:02:13]} 16. Rfb1 {[%clk 0:00:57]}  Rfc8 {[%clk 0:02:10]} 17. a5 {[%clk 0:00:52]}  c4 {[%clk 0:01:42]} 18. axb6 {[%clk 0:00:44]}  cxd3 {[%clk 0:01:42]} 0-1


[Site "https://www.chess.com"]

[Event "Titled Tuesday Blitz November 30 2021"]
[White "Durarbayli, Vasif"]
[Black "Krishnan, Varun"]
[WhiteFideId "13402935"]
[BlackFideId "5054508"]
[WhiteElo "2522"]
[BlackElo "2677"]
[Result "1-0"]
[Round "05"]
[TimeControl "180+1"]
[Date "2021.11.30"]
[WhiteClock "0:00:12"]
[BlackClock "0:00:02"]

1. e4 {[%clk 0:03:00]}  c5 {[%clk 0:02:48]} 2. b3 {[%clk 0:03:00]}  d6 {[%clk 0:02:46]} 3. Bb2 {[%clk 0:02:59]}  e5 {[%clk 0:02:46]} 4. Bc4 {[%clk 0:02:58]}  Be7 {[%clk 0:02:40]} 5. Ne2 {[%clk 0:02:57]}  Nf6 {[%clk 0:02:39]} 6. Nbc3 {[%clk 0:02:57]}  O-O {[%clk 0:02:38]} 7. d3 {[%clk 0:02:57]}  a6 {[%clk 0:02:38]} 8. a4 {[%clk 0:02:56]}  Be6 {[%clk 0:02:38]} 9. O-O {[%clk 0:02:52]}  Nc6 {[%clk 0:02:37]} 10. f4 {[%clk 0:02:51]}  Bxc4 {[%clk 0:02:33]} 11. bxc4 {[%clk 0:02:50]}  Nd4 {[%clk 0:02:33]} 12. Rb1 {[%clk 0:02:32]}  Ng4 {[%clk 0:02:14]} 13. Nd5 {[%clk 0:02:23]}  Nf6 {[%clk 0:02:01]} 14. fxe5 {[%clk 0:02:12]}  dxe5 {[%clk 0:01:50]} 15. Bxd4 {[%clk 0:02:09]}  Nxd5 {[%clk 0:01:27]} 16. cxd5 {[%clk 0:01:52]}  cxd4 {[%clk 0:01:26]} 17. Rxb7 {[%clk 0:01:51]}  Rb8 {[%clk 0:01:26]} 18. Qb1 {[%clk 0:01:40]}  Qc8 {[%clk 0:01:12]} 19. Rxb8 {[%clk 0:01:09]}  Qxb8 {[%clk 0:01:13]} 20. Qb3 {[%clk 0:01:08]}  Rc8 {[%clk 0:00:59]} 21. Rb1 {[%clk 0:00:36]}  Qxb3 {[%clk 0:00:57]} 22. Rxb3 {[%clk 0:00:37]}  a5 {[%clk 0:00:31]} 23. c4 {[%clk 0:00:27]}  Bb4 {[%clk 0:00:28]} 24. g4 {[%clk 0:00:20]}  g6 {[%clk 0:00:27]} 25. Rb1 {[%clk 0:00:19]}  Kg7 {[%clk 0:00:24]} 26. Kg2 {[%clk 0:00:20]}  f6 {[%clk 0:00:17]} 27. Rf1 {[%clk 0:00:18]}  Rb8 {[%clk 0:00:14]} 28. Rb1 {[%clk 0:00:18]}  Rc8 {[%clk 0:00:14]} 29. Ng1 {[%clk 0:00:18]}  Kf7 {[%clk 0:00:14]} 30. Nf3 {[%clk 0:00:19]}  Ke7 {[%clk 0:00:14]} 31. g5 {[%clk 0:00:19]}  Kd6 {[%clk 0:00:08]} 32. gxf6 {[%clk 0:00:19]}  Rf8 {[%clk 0:00:08]} 33. c5+ {[%clk 0:00:12]}  Bxc5 {[%clk 0:00:06]} 34. Rb5 {[%clk 0:00:13]}  Bb4 {[%clk 0:00:04]} 35. Rb6+ {[%clk 0:00:12]}  Kc7 {[%clk 0:00:03]} 36. Rc6+ {[%clk 0:00:13]}  Kd7 {[%clk 0:00:04]} 37. Nxe5+ {[%clk 0:00:13]}  Kd8 {[%clk 0:00:04]} 38. Nc4 {[%clk 0:00:10]}  Kd7 {[%clk 0:00:02]} 39. e5 {[%clk 0:00:10]}  Rb8 {[%clk 0:00:02]} 40. e6+ {[%clk 0:00:10]}  Ke8 {[%clk 0:00:02]} 41. d6 {[%clk 0:00:11]}  Kf8 {[%clk 0:00:02]} 42. d7 {[%clk 0:00:11]}  Be7 {[%clk 0:00:03]} 43. Rc8+ {[%clk 0:00:12]}  Rxc8 {[%clk 0:00:02]} 44. dxc8=Q+ {[%clk 0:00:12]} 1-0


[Site "https://www.chess.com"]

[Event "Titled Tuesday Blitz November 30 2021"]
[White "Gelman, Alexander"]
[Black "Sadhwani, Raunak"]
[WhiteFideId "4118316"]
[BlackFideId "35093487"]
[WhiteElo "2375"]
[BlackElo "2517"]
[Result "0-1"]
[Round "05"]
[TimeControl "180+1"]
[Date "2021.11.30"]
[WhiteClock "0:00:17"]
[BlackClock "0:00:50"]

1. d4 {[%clk 0:02:55]}  Nf6 {[%clk 0:02:58]} 2. Nc3 {[%clk 0:02:54]}  d5 {[%clk 0:02:57]} 3. Bf4 {[%clk 0:02:54]}  a6 {[%clk 0:02:56]} 4. e3 {[%clk 0:02:55]}  e6 {[%clk 0:02:56]} 5. g4 {[%clk 0:02:55]}  c5 {[%clk 0:02:53]} 6. g5 {[%clk 0:02:55]}  Nfd7 {[%clk 0:02:52]} 7. h4 {[%clk 0:02:55]}  Nc6 {[%clk 0:02:52]} 8. Nf3 {[%clk 0:02:55]}  b5 {[%clk 0:02:52]} 9. Bh3 {[%clk 0:02:56]}  b4 {[%clk 0:02:50]} 10. Ne2 {[%clk 0:02:56]}  a5 {[%clk 0:02:45]} 11. O-O {[%clk 0:02:55]}  Be7 {[%clk 0:02:41]} 12. Re1 {[%clk 0:02:51]}  h6 {[%clk 0:02:33]} 13. gxh6 {[%clk 0:02:29]}  gxh6 {[%clk 0:02:34]} 14. Kh2 {[%clk 0:02:20]}  Bxh4 {[%clk 0:02:24]} 15. Nxh4 {[%clk 0:02:04]}  Qxh4 {[%clk 0:02:25]} 16. Bg3 {[%clk 0:02:04]}  Qe7 {[%clk 0:02:24]} 17. a3 {[%clk 0:01:52]}  Nf6 {[%clk 0:02:00]} 18. dxc5 {[%clk 0:01:31]}  Ne4 {[%clk 0:01:49]} 19. axb4 {[%clk 0:01:29]}  Nxb4 {[%clk 0:01:50]} 20. c4 {[%clk 0:00:53]}  h5 {[%clk 0:01:34]} 21. Qd4 {[%clk 0:00:38]}  f6 {[%clk 0:01:11]} 22. cxd5 {[%clk 0:00:38]}  exd5 {[%clk 0:01:12]} 23. Bxc8 {[%clk 0:00:35]}  Rxc8 {[%clk 0:01:08]} 24. Rxa5 {[%clk 0:00:35]}  Nc6 {[%clk 0:00:58]} 25. Qa4 {[%clk 0:00:29]}  h4 {[%clk 0:00:58]} 26. Bf4 {[%clk 0:00:29]}  Kf7 {[%clk 0:00:52]} 27. f3 {[%clk 0:00:25]}  Nd2 {[%clk 0:00:49]} 28. Ra6 {[%clk 0:00:19]}  Nxf3+ {[%clk 0:00:49]} 29. Kh1 {[%clk 0:00:17]}  Nxe1 {[%clk 0:00:49]} 30. Rxc6 {[%clk 0:00:17]}  Rxc6 {[%clk 0:00:49]} 31. Qxc6 {[%clk 0:00:17]}  Qe4+ {[%clk 0:00:50]} 0-1


[Site "https://www.chess.com"]

[Event "Titled Tuesday Blitz November 30 2021"]
[White "Jeet, Jain"]
[Black "Kobalia, Mikhail"]
[WhiteFideId "5073022"]
[BlackFideId "4119150"]
[WhiteElo "2085"]
[BlackElo "2543"]
[Result "0-1"]
[Round "05"]
[TimeControl "180+1"]
[Date "2021.11.30"]
[WhiteClock "0:00:13"]
[BlackClock "0:00:07"]

1. e4 {[%clk 0:03:00]}  c5 {[%clk 0:02:56]} 2. Nf3 {[%clk 0:03:00]}  e6 {[%clk 0:02:56]} 3. d4 {[%clk 0:02:58]}  cxd4 {[%clk 0:02:56]} 4. Nxd4 {[%clk 0:02:59]}  Nc6 {[%clk 0:02:56]} 5. Nc3 {[%clk 0:03:00]}  a6 {[%clk 0:02:57]} 6. Bf4 {[%clk 0:02:57]}  d6 {[%clk 0:02:55]} 7. Nxc6 {[%clk 0:02:55]}  bxc6 {[%clk 0:02:55]} 8. Qd2 {[%clk 0:02:56]}  Nf6 {[%clk 0:02:53]} 9. O-O-O {[%clk 0:02:53]}  d5 {[%clk 0:02:54]} 10. Bd3 {[%clk 0:02:43]}  a5 {[%clk 0:02:50]} 11. g4 {[%clk 0:02:43]}  Be7 {[%clk 0:02:39]} 12. f3 {[%clk 0:02:36]}  a4 {[%clk 0:02:38]} 13. g5 {[%clk 0:02:23]}  Nh5 {[%clk 0:02:32]} 14. h4 {[%clk 0:02:08]}  Nxf4 {[%clk 0:02:26]} 15. Qxf4 {[%clk 0:02:09]}  a3 {[%clk 0:02:27]} 16. b3 {[%clk 0:02:09]}  Qa5 {[%clk 0:02:26]} 17. Ne2 {[%clk 0:02:04]}  Qc5 {[%clk 0:02:21]} 18. Qe5 {[%clk 0:01:57]}  O-O {[%clk 0:02:16]} 19. exd5 {[%clk 0:01:54]}  cxd5 {[%clk 0:02:11]} 20. Qd4 {[%clk 0:01:54]}  Qc7 {[%clk 0:02:06]} 21. f4 {[%clk 0:01:53]}  Ba6 {[%clk 0:02:03]} 22. h5 {[%clk 0:01:48]}  Bc5 {[%clk 0:02:01]} 23. Qe5 {[%clk 0:01:38]}  Qxe5 {[%clk 0:01:59]} 24. fxe5 {[%clk 0:01:39]}  Be3+ {[%clk 0:01:59]} 25. Kb1 {[%clk 0:01:38]}  Bxg5 {[%clk 0:02:00]} 26. Rhg1 {[%clk 0:01:33]}  h6 {[%clk 0:01:56]} 27. Rg4 {[%clk 0:01:27]}  Bxd3 {[%clk 0:01:52]} 28. Rxd3 {[%clk 0:01:28]}  Rfc8 {[%clk 0:01:51]} 29. Nd4 {[%clk 0:01:25]}  Rc5 {[%clk 0:01:44]} 30. c3 {[%clk 0:00:52]}  Rac8 {[%clk 0:01:42]} 31. Kc2 {[%clk 0:00:52]}  Kf8 {[%clk 0:01:32]} 32. Nf3 {[%clk 0:00:50]}  f5 {[%clk 0:01:21]} 33. Nxg5 {[%clk 0:00:41]}  hxg5 {[%clk 0:01:11]} 34. Rxg5 {[%clk 0:00:40]}  d4 {[%clk 0:01:11]} 35. c4 {[%clk 0:00:39]}  Rxe5 {[%clk 0:01:10]} 36. Rxd4 {[%clk 0:00:40]}  Re2+ {[%clk 0:01:02]} 37. Rd2 {[%clk 0:00:40]}  Rxd2+ {[%clk 0:00:50]} 38. Kxd2 {[%clk 0:00:41]}  Rd8+ {[%clk 0:00:47]} 39. Kc3 {[%clk 0:00:41]}  Rd1 {[%clk 0:00:44]} 40. Kb4 {[%clk 0:00:39]}  f4 {[%clk 0:00:44]} 41. c5 {[%clk 0:00:38]}  f3 {[%clk 0:00:44]} 42. Rg3 {[%clk 0:00:36]}  Rd3 {[%clk 0:00:44]} 43. c6 {[%clk 0:00:33]}  f2 {[%clk 0:00:21]} 44. Rxd3 {[%clk 0:00:33]}  f1=Q {[%clk 0:00:21]} 45. Rc3 {[%clk 0:00:33]}  Qf4+ {[%clk 0:00:20]} 46. Rc4 {[%clk 0:00:32]}  Qc7 {[%clk 0:00:18]} 47. Kxa3 {[%clk 0:00:32]}  e5 {[%clk 0:00:18]} 48. b4 {[%clk 0:00:33]}  Ke7 {[%clk 0:00:18]} 49. b5 {[%clk 0:00:32]}  Qa5+ {[%clk 0:00:17]} 50. Kb3 {[%clk 0:00:30]}  Qxb5+ {[%clk 0:00:17]} 51. Kc3 {[%clk 0:00:31]}  Qa5+ {[%clk 0:00:17]} 52. Kd3 {[%clk 0:00:28]}  Qc7 {[%clk 0:00:16]} 53. a4 {[%clk 0:00:28]}  Kd6 {[%clk 0:00:16]} 54. Rc3 {[%clk 0:00:21]}  Kd5 {[%clk 0:00:15]} 55. Rc4 {[%clk 0:00:20]}  e4+ {[%clk 0:00:14]} 56. Kc3 {[%clk 0:00:19]}  e3 {[%clk 0:00:13]} 57. Rd4+ {[%clk 0:00:19]}  Ke5 {[%clk 0:00:13]} 58. Rc4 {[%clk 0:00:18]}  Kd5 {[%clk 0:00:09]} 59. Rd4+ {[%clk 0:00:18]}  Kc5 {[%clk 0:00:09]} 60. Rc4+ {[%clk 0:00:18]}  Kb6 {[%clk 0:00:09]} 61. Rb4+ {[%clk 0:00:17]}  Ka5 {[%clk 0:00:09]} 62. Rc4 {[%clk 0:00:17]}  e2 {[%clk 0:00:09]} 63. Kd2 {[%clk 0:00:16]}  Qe5 {[%clk 0:00:07]} 64. Ke1 {[%clk 0:00:14]}  Qd5 {[%clk 0:00:07]} 65. Rc2 {[%clk 0:00:13]}  Qd1+ {[%clk 0:00:07]} 0-1


[Site "https://www.chess.com"]

[Event "Titled Tuesday Blitz November 30 2021"]
[White "Kosteniuk, Alexandra"]
[Black "Rasulov, Vugar"]
[WhiteFideId "4128125"]
[BlackFideId "13402390"]
[WhiteElo "2521"]
[BlackElo "2560"]
[Result "0-1"]
[Round "05"]
[TimeControl "180+1"]
[Date "2021.11.30"]
[WhiteClock "0:00:06"]
[BlackClock "0:00:30"]

1. e4 {[%clk 0:03:00]}  c5 {[%clk 0:03:00]} 2. c3 {[%clk 0:03:00]}  Nf6 {[%clk 0:03:00]} 3. e5 {[%clk 0:02:59]}  Nd5 {[%clk 0:03:00]} 4. d4 {[%clk 0:03:00]}  cxd4 {[%clk 0:03:01]} 5. Nf3 {[%clk 0:03:00]}  d6 {[%clk 0:03:01]} 6. cxd4 {[%clk 0:03:00]}  e6 {[%clk 0:03:01]} 7. Bc4 {[%clk 0:02:59]}  Nb6 {[%clk 0:03:00]} 8. Bd3 {[%clk 0:02:57]}  Nc6 {[%clk 0:02:58]} 9. O-O {[%clk 0:02:55]}  Nb4 {[%clk 0:02:58]} 10. Be4 {[%clk 0:02:55]}  d5 {[%clk 0:02:58]} 11. Bd3 {[%clk 0:02:56]}  Nxd3 {[%clk 0:02:57]} 12. Qxd3 {[%clk 0:02:57]}  Be7 {[%clk 0:02:55]} 13. Nc3 {[%clk 0:02:57]}  Bd7 {[%clk 0:02:54]} 14. b3 {[%clk 0:02:55]}  Rc8 {[%clk 0:02:48]} 15. Ne2 {[%clk 0:02:53]}  h5 {[%clk 0:02:37]} 16. a4 {[%clk 0:02:41]}  g5 {[%clk 0:02:21]} 17. Bd2 {[%clk 0:02:26]}  Rc6 {[%clk 0:02:05]} 18. Ne1 {[%clk 0:02:12]}  f5 {[%clk 0:01:51]} 19. exf6 {[%clk 0:02:09]}  Bxf6 {[%clk 0:01:52]} 20. Nc2 {[%clk 0:02:04]}  Kf7 {[%clk 0:01:49]} 21. Ne3 {[%clk 0:01:59]}  Qg8 {[%clk 0:01:43]} 22. f4 {[%clk 0:01:38]}  Qg6 {[%clk 0:01:43]} 23. f5 {[%clk 0:01:17]}  exf5 {[%clk 0:01:43]} 24. Nxf5 {[%clk 0:01:18]}  Re8 {[%clk 0:01:36]} 25. Rae1 {[%clk 0:01:13]}  Nc8 {[%clk 0:01:33]} 26. Qf3 {[%clk 0:00:37]}  Qxf5 {[%clk 0:01:29]} 27. Qxf5 {[%clk 0:00:37]}  Bxf5 {[%clk 0:01:30]} 28. Rxf5 {[%clk 0:00:38]}  Kg6 {[%clk 0:01:18]} 29. g4 {[%clk 0:00:29]}  Rce6 {[%clk 0:01:11]} 30. Kf1 {[%clk 0:00:26]}  Ne7 {[%clk 0:01:08]} 31. Rf2 {[%clk 0:00:21]}  hxg4 {[%clk 0:01:09]} 32. Nc3 {[%clk 0:00:17]}  Rxe1+ {[%clk 0:01:08]} 33. Bxe1 {[%clk 0:00:18]}  Bxd4 {[%clk 0:01:03]} 34. Re2 {[%clk 0:00:18]}  Rf8+ {[%clk 0:00:57]} 35. Kg2 {[%clk 0:00:18]}  Bxc3 {[%clk 0:00:55]} 36. Bxc3 {[%clk 0:00:18]}  Nc6 {[%clk 0:00:55]} 37. Re6+ {[%clk 0:00:17]}  Kf5 {[%clk 0:00:55]} 38. Rd6 {[%clk 0:00:16]}  Ke4 {[%clk 0:00:54]} 39. Rd7 {[%clk 0:00:16]}  d4 {[%clk 0:00:53]} 40. Bd2 {[%clk 0:00:16]}  b6 {[%clk 0:00:51]} 41. Bxg5 {[%clk 0:00:14]}  Rf3 {[%clk 0:00:44]} 42. b4 {[%clk 0:00:08]}  Nxb4 {[%clk 0:00:40]} 43. Re7+ {[%clk 0:00:09]}  Kd3 {[%clk 0:00:40]} 44. Rxa7 {[%clk 0:00:08]}  Nd5 {[%clk 0:00:40]} 45. Rg7 {[%clk 0:00:08]}  Ke2 {[%clk 0:00:37]} 46. Bh6 {[%clk 0:00:07]}  Nf4+ {[%clk 0:00:30]} 47. Bxf4 {[%clk 0:00:06]}  Rxf4 {[%clk 0:00:31]} 48. Rg6 {[%clk 0:00:06]}  d3 {[%clk 0:00:30]} 49. Re6+ {[%clk 0:00:06]}  Kd2 {[%clk 0:00:29]} 50. Rxb6 {[%clk 0:00:07]}  Rxa4 {[%clk 0:00:29]} 51. Kg3 {[%clk 0:00:07]}  Re4 {[%clk 0:00:30]} 52. Rd6 {[%clk 0:00:06]}  Ke2 {[%clk 0:00:30]} 0-1


[Site "https://www.chess.com"]